[Event "Baltic Zonal 2017"]
[Site "Liepaja"]
[Date "2017.06.18"]
[Round "4"]
[White "Sveshnikov, Vladimir"]
[Black "Brazdzionis, Andrius"]
[Result "1-0"]
[ECO "B09"]
[WhiteElo "2383"]
[BlackElo "2335"]
[Annotator "RC"]
[PlyCount "95"]
[EventDate "2017.??.??"]
[EventType "swiss"]
[EventCountry "LAT"]
[SourceTitle "playchess.com"]
[Source "ChessBase"]
[SourceQuality "1"]
[TimeControl "5400+30"]

1. e4 {[%emt 0:00:00]} d6 {[%emt 0:00:17]} 2. d4 {[%emt 0:00:00]} Nf6 {[%emt 0:00:09]} 3. Nc3 {[%emt 0:00:00]} g6 {[%emt 0:00:09]} 4. f4 {[%emt 0:00:00]} Bg7 {[%emt 0:00:07]} 5. Nf3 {[%emt 0:00:00]} O-O {[%emt 0:00:07]} 6. Be3 {[%emt 0:00:20]} b6 {[%emt 0:00:06]} 7. Qd2 {[%emt 0:00:26]} Bb7 {[%emt 0:01:05]} 8. e5 {[%emt 0:00:40]} Ng4 {[%emt 0:03:15]} 9. Bg1 {[%emt 0:13:30]} c5 {[%emt 0:08:00]} 10. dxc5 {[%emt 0:02:53]} dxe5 {[%emt 0:01:48]} 11. h3 {[%emt 0:15:31]} e4 {[%emt 0:04:24]} 12. hxg4 {[%emt 0:00:49]} exf3 {[%emt 0:00:05]} 13. O-O-O {[%emt 0:06:05]} Qxd2+ {[%emt 0:16:02]} 14. Rxd2 {[%emt 0:00:06]} fxg2 {[%emt 0:00:11]} 15. Bxg2 {[%emt 0:00:06]} Bxg2 {[%emt 0:00:04]} 16. Rxg2 {[%emt 0:00:05]} Nc6 {[%emt 0:00:08]} 17. f5 {[%emt 0:15:21]} Rfd8 {[%emt 0:12:28]} 18. Rgh2 {[%emt 0:07:54]} bxc5 {[%emt 0:14:59]} 19. Bxc5 {[%emt 0:02:01]} h6 {[%emt 0:00:56]} 20. fxg6 {[%emt 0:05:24]} fxg6 {[%emt 0:00:10]} 21. Re2 {[%emt 0:00:28]} e5 {[%emt 0:09:31]} 22. Ne4 {[%emt 0:01:35]} Rac8 {[%emt 0:03:56]} 23. c3 {[%emt 0:00:43]} Rc7 {[%emt 0:04:36]} 24. b4 {[%emt 0:03:45]} Nb8 {[%emt 0:04:12]} 25. Kb2 {[%emt 0:01:42]} Nd7 {[%emt 0:07:39]} 26. Rd1 {[%emt 0:01:51]} Rdc8 {[%emt 0:00:06]} 27. Be3 {[%emt 0:08:18]} Nf6 {[%emt 0:04:06]} 28. Nxf6+ {[%emt 0:01:58]} Bxf6 {[%emt 0:00:00]} 29. Rd6 {[%emt 0:00:15]} Kg7 {[%emt 0:00:46]} 30. Ra6 {[%emt 0:05:12]} Rxc3 {[%emt 0:01:47]} 31. Rxa7+ {[%emt 0:01:31]} Kg8 {[%emt 0:00:10]} 32. Ra6 {[%emt 0:00:36]} Bg7 {[%emt 0:01:29]} 33. Rxg6 {[%emt 0:01:29]} Kh7 {[%emt 0:00:01]} 34. Rd6 {[%emt 0:00:25]} e4 {[%emt 0:01:28]} 35. Bd4 {[%emt 0:05:22]} Rd3 {[%emt 0:00:53]} 36. Rxe4 {[%emt 0:00:48]} Rxd4 {[%emt 0:00:05]} 37. Rexd4 {[%emt 0:00:26]} Rc4 {[%emt 0:00:01]} 38. Kb3 {[%emt 0:00:25]} Rxd4 {[%emt 0:00:03]} 39. Rxd4 {[%emt 0:00:03]} Bxd4 {[%emt 0:00:02]} 40. Kc4 {[%emt 0:00:09]} Bf2 {[%emt 0:01:14]} 41. a4 {[%emt 0:00:15]} Kg6 {[%emt 0:00:05]} 42. a5 {[%emt 0:00:09]} Kg5 {[%emt 0:01:08]} 43. b5 {[%emt 0:00:15]} Kxg4 {[%emt 0:00:08]} 44. b6 {[%emt 0:00:06]} h5 {[%emt 0:00:11]} 45. Kb5 {[%emt 0:00:04]} Kg3 {[%emt 0:04:22]} 46. a6 {[%emt 0:00:15]} Bxb6 {[%emt 0:00:30]} 47. Kxb6 {[%emt 0:00:03]} h4 {[%emt 0:00:04]} 48. a7 {[%emt 0:00:03]} 1-0